[Event "Late-Titled-Tuesday-Blitz-February-20-2024"]
[Site "Chess.com"]
[Date "2024.02.20"]
[Round "8"]
[White "yaguigor"]
[Black "SouS007"]
[Result "1-0"]
[WhiteElo "2640"]
[BlackElo "2494"]
[TimeControl "180+1"]
[EndTime "15:27:51 PST"]
[Termination "yaguigor won by checkmate"]

1. Nf3 {[%clk 0:03:00.9]} 1... g5 {[%clk 0:02:56.8]} 2. Nxg5 {[%clk 0:02:52.8]}
2... e5 {[%clk 0:02:56.3]} 3. d4 {[%clk 0:02:53]} 3... h6 {[%clk 0:02:54.5]} 4.
Nf3 {[%clk 0:02:49]} 4... e4 {[%clk 0:02:53.5]} 5. Ng1 {[%clk 0:02:43.4]} 5...
d5 {[%clk 0:02:49.2]} 6. Bf4 {[%clk 0:02:42.2]} 6... c5 {[%clk 0:02:47.5]} 7. c3
{[%clk 0:02:37.7]} 7... Nc6 {[%clk 0:02:47]} 8. e3 {[%clk 0:02:36.3]} 8... Qb6
{[%clk 0:02:46.5]} 9. Qb3 {[%clk 0:02:35.1]} 9... Na5 {[%clk 0:02:40.4]} 10.
Qxb6 {[%clk 0:02:25.8]} 10... axb6 {[%clk 0:02:41.3]} 11. Bb5+ {[%clk
0:02:24.6]} 11... Bd7 {[%clk 0:02:41.2]} 12. Bxd7+ {[%clk 0:02:24.5]} 12... Kxd7
{[%clk 0:02:42.1]} 13. Nd2 {[%clk 0:02:24]} 13... Ne7 {[%clk 0:02:40.9]} 14. Ne2
{[%clk 0:02:22]} 14... Ng6 {[%clk 0:02:40.6]} 15. O-O {[%clk 0:02:10.5]} 15...
Kc6 {[%clk 0:02:33.4]} 16. Bg3 {[%clk 0:02:06]} 16... h5 {[%clk 0:02:33.3]} 17.
Nf4 {[%clk 0:02:02.6]} 17... Ne7 {[%clk 0:02:22.7]} 18. h3 {[%clk 0:01:48.9]}
18... Nf5 {[%clk 0:02:20.3]} 19. Bh2 {[%clk 0:01:49.1]} 19... Bh6 {[%clk
0:02:20.1]} 20. Rfc1 {[%clk 0:01:44.7]} 20... Rhg8 {[%clk 0:02:14.4]} 21. Kf1
{[%clk 0:01:44.4]} 21... h4 {[%clk 0:02:04.6]} 22. Ne2 {[%clk 0:01:18.2]} 22...
Bxe3 {[%clk 0:01:56]} 23. fxe3 {[%clk 0:01:11.1]} 23... Nxe3+ {[%clk 0:01:56.9]}
24. Kf2 {[%clk 0:01:11.2]} 24... Rxg2+ {[%clk 0:01:57.2]} 25. Kxe3 {[%clk
0:01:11.4]} 25... Rxh2 {[%clk 0:01:57.8]} 26. Rh1 {[%clk 0:01:02.1]} 26... Rxh1
{[%clk 0:01:56.8]} 27. Rxh1 {[%clk 0:01:00.7]} 27... Kb5 {[%clk 0:01:40.8]} 28.
Rf1 {[%clk 0:00:58.8]} 28... Nc4+ {[%clk 0:01:34.1]} 29. Nxc4 {[%clk 0:00:57.5]}
29... Kxc4 {[%clk 0:01:35]} 30. b3+ {[%clk 0:00:56.4]} 30... Kb5 {[%clk
0:01:35.3]} 31. a4+ {[%clk 0:00:56.2]} 31... Ka5 {[%clk 0:01:33.3]} 32. Rxf7
{[%clk 0:00:55.6]} 32... b5 {[%clk 0:01:22.1]} 33. Rxb7 {[%clk 0:00:49.4]} 33...
bxa4 {[%clk 0:01:22.1]} 34. bxa4 {[%clk 0:00:48.4]} 34... cxd4+ {[%clk
0:01:21.6]} 35. Kxd4 {[%clk 0:00:44]} 35... Rf8 {[%clk 0:01:11.9]} 36. Rh7
{[%clk 0:00:38.1]} 36... Rf2 {[%clk 0:01:08.1]} 37. Nf4 {[%clk 0:00:34.6]} 37...
Rxf4 {[%clk 0:01:07.7]} 38. Kxd5 {[%clk 0:00:34.4]} 38... Kxa4 {[%clk
0:01:03.2]} 39. c4 {[%clk 0:00:30.1]} 39... e3 {[%clk 0:00:56.1]} 40. Re7 {[%clk
0:00:27.3]} 40... Rf3 {[%clk 0:00:55]} 41. c5 {[%clk 0:00:25.9]} 41... Rxh3
{[%clk 0:00:49.2]} 42. Kc4 {[%clk 0:00:25.4]} 42... Ka3 {[%clk 0:00:46]} 43. c6
{[%clk 0:00:25.1]} 43... Rh1 {[%clk 0:00:44]} 44. Rxe3+ {[%clk 0:00:18.1]} 44...
Ka4 {[%clk 0:00:44.3]} 45. Rc3 {[%clk 0:00:16.2]} 45... Rg1 {[%clk 0:00:37.4]}
46. c7 {[%clk 0:00:15.6]} 46... Rg8 {[%clk 0:00:37.5]} 47. Kc5 {[%clk
0:00:14.4]} 47... Ka5 {[%clk 0:00:36.6]} 48. Ra3# {[%clk 0:00:12.1]} 1-0

[Event "Late-Titled-Tuesday-Blitz-February-20-2024"]
[Site "Chess.com"]
[Date "2024.02.20"]
[Round "8"]
[White "dennisodessa"]
[Black "Kopytkin"]
[Result "1-0"]
[WhiteElo "2585"]
[BlackElo "2413"]
[TimeControl "180+1"]
[EndTime "15:27:54 PST"]
[Termination "dennisodessa won on time"]

1. d4 {[%clk 0:02:56.1]} 1... d5 {[%clk 0:02:58.7]} 2. c4 {[%clk 0:02:56.8]}
2... Bf5 {[%clk 0:02:55.6]} 3. cxd5 {[%clk 0:02:55.2]} 3... Nf6 {[%clk
0:02:53.5]} 4. Nc3 {[%clk 0:02:48.8]} 4... Nxd5 {[%clk 0:02:53.5]} 5. Nf3 {[%clk
0:02:45.4]} 5... c6 {[%clk 0:02:37.2]} 6. Qb3 {[%clk 0:02:41.9]} 6... Qb6 {[%clk
0:02:12.3]} 7. Nxd5 {[%clk 0:01:56.7]} 7... Qxb3 {[%clk 0:02:11.2]} 8. axb3
{[%clk 0:01:49.6]} 8... cxd5 {[%clk 0:02:10.9]} 9. Bf4 {[%clk 0:01:47.7]} 9...
Nc6 {[%clk 0:02:09.7]} 10. e3 {[%clk 0:01:47.8]} 10... f6 {[%clk 0:02:09.8]} 11.
Bb5 {[%clk 0:01:46.1]} 11... Kd7 {[%clk 0:02:07.4]} 12. Nd2 {[%clk 0:01:35.3]}
12... e6 {[%clk 0:02:01.7]} 13. O-O {[%clk 0:01:34.1]} 13... Bd6 {[%clk
0:01:57.8]} 14. Bxd6 {[%clk 0:01:33.6]} 14... Kxd6 {[%clk 0:01:58.7]} 15. f3
{[%clk 0:01:31.1]} 15... Rhc8 {[%clk 0:01:55.5]} 16. Rfc1 {[%clk 0:01:22.4]}
16... a6 {[%clk 0:01:48.5]} 17. Bxc6 {[%clk 0:01:21.8]} 17... Rxc6 {[%clk
0:01:42.3]} 18. e4 {[%clk 0:01:20.2]} 18... Bg6 {[%clk 0:01:38.7]} 19. Rxc6+
{[%clk 0:01:16.6]} 19... Kxc6 {[%clk 0:01:36.5]} 20. Kf2 {[%clk 0:01:16.6]}
20... Kd7 {[%clk 0:01:14.9]} 21. Rc1 {[%clk 0:01:13.6]} 21... Rc8 {[%clk
0:01:07.8]} 22. Rxc8 {[%clk 0:01:11.4]} 22... Kxc8 {[%clk 0:01:08.7]} 23. Ke3
{[%clk 0:01:11]} 23... a5 {[%clk 0:01:05.5]} 24. Nb1 {[%clk 0:01:00.9]} 24...
Kc7 {[%clk 0:01:00.3]} 25. Nc3 {[%clk 0:00:54.9]} 25... Kc6 {[%clk 0:00:59.7]}
26. h4 {[%clk 0:00:53.4]} 26... h6 {[%clk 0:00:58.5]} 27. g4 {[%clk 0:00:50.1]}
27... Bf7 {[%clk 0:00:54.7]} 28. h5 {[%clk 0:00:48.4]} 28... dxe4 {[%clk
0:00:30.7]} 29. fxe4 {[%clk 0:00:49.3]} 29... e5 {[%clk 0:00:30.9]} 30. d5+
{[%clk 0:00:47.1]} 30... Kc5 {[%clk 0:00:31.2]} 31. Na4+ {[%clk 0:00:26.6]}
31... Kb4 {[%clk 0:00:30.2]} 32. Nb6 {[%clk 0:00:26.5]} 32... Kxb3 {[%clk
0:00:30.3]} 33. Kd3 {[%clk 0:00:17.6]} 33... Kxb2 {[%clk 0:00:20.3]} 34. Nc4+
{[%clk 0:00:16.8]} 34... Kb3 {[%clk 0:00:09.7]} 35. Nxa5+ {[%clk 0:00:17.7]}
35... Kb4 {[%clk 0:00:08.7]} 36. Nxb7 {[%clk 0:00:18.6]} 36... Kb5 {[%clk
0:00:08.8]} 37. Nd6+ {[%clk 0:00:18.8]} 1-0

[Event "Late-Titled-Tuesday-Blitz-February-20-2024"]
[Site "Chess.com"]
[Date "2024.02.20"]
[Round "8"]
[White "jefferyx"]
[Black "Hikaru"]
[Result "0-1"]
[WhiteElo "3039"]
[BlackElo "3245"]
[TimeControl "180+1"]
[EndTime "15:27:57 PST"]
[Termination "Hikaru won on time"]

1. e4 {[%clk 0:03:00.9]} 1... e5 {[%clk 0:02:58.1]} 2. Nf3 {[%clk 0:03:00.5]}
2... Nf6 {[%clk 0:02:58.7]} 3. Nxe5 {[%clk 0:02:55.6]} 3... Nxe4 {[%clk
0:02:58.6]} 4. Qe2 {[%clk 0:02:51.3]} 4... Qe7 {[%clk 0:02:58.9]} 5. Qxe4 {[%clk
0:02:50.8]} 5... d6 {[%clk 0:02:59.1]} 6. d4 {[%clk 0:02:51.4]} 6... dxe5 {[%clk
0:02:53.5]} 7. dxe5 {[%clk 0:02:51.1]} 7... Nc6 {[%clk 0:02:53.8]} 8. Nc3 {[%clk
0:02:38]} 8... Qxe5 {[%clk 0:02:51.5]} 9. Qxe5+ {[%clk 0:02:38.1]} 9... Nxe5
{[%clk 0:02:52.4]} 10. Bf4 {[%clk 0:02:36.7]} 10... Bd6 {[%clk 0:02:47.1]} 11.
Bg3 {[%clk 0:02:24]} 11... Be6 {[%clk 0:02:34.3]} 12. Nb5 {[%clk 0:02:20.9]}
12... a6 {[%clk 0:02:30.9]} 13. Nxd6+ {[%clk 0:02:20.8]} 13... cxd6 {[%clk
0:02:31.8]} 14. O-O-O {[%clk 0:02:20.9]} 14... O-O-O {[%clk 0:02:32.5]} 15. Be2
{[%clk 0:02:18]} 15... f6 {[%clk 0:02:32.2]} 16. Rhe1 {[%clk 0:02:17.6]} 16...
Bf7 {[%clk 0:02:30.7]} 17. b3 {[%clk 0:02:17.3]} 17... Kc7 {[%clk 0:02:30.1]}
18. Kb2 {[%clk 0:02:17.4]} 18... h5 {[%clk 0:02:30.6]} 19. h4 {[%clk 0:02:15.7]}
19... Rhe8 {[%clk 0:02:30.4]} 20. Bf1 {[%clk 0:02:08.2]} 20... g5 {[%clk
0:02:19.3]} 21. f3 {[%clk 0:01:44.5]} 21... Re6 {[%clk 0:02:12.3]} 22. a4 {[%clk
0:01:37.8]} 22... Ng6 {[%clk 0:02:04]} 23. hxg5 {[%clk 0:01:31.8]} 23... fxg5
{[%clk 0:02:03.7]} 24. Bd3 {[%clk 0:01:27.4]} 24... Rxe1 {[%clk 0:01:45]} 25.
Rxe1 {[%clk 0:01:28.3]} 25... h4 {[%clk 0:01:45.7]} 26. Bh2 {[%clk 0:01:08.1]}
26... Re8 {[%clk 0:01:43.2]} 27. Rxe8 {[%clk 0:01:01.9]} 27... Bxe8 {[%clk
0:01:44.1]} 28. Kc3 {[%clk 0:01:01.9]} 28... Ne7 {[%clk 0:01:36.4]} 29. Kd4
{[%clk 0:00:59.7]} 29... Bc6 {[%clk 0:01:32.8]} 30. c4 {[%clk 0:00:43.8]} 30...
Kd7 {[%clk 0:01:32.1]} 31. Bc2 {[%clk 0:00:34.7]} 31... Ke6 {[%clk 0:01:31.8]}
32. b4 {[%clk 0:00:34.8]} 32... Be8 {[%clk 0:00:53.7]} 33. b5 {[%clk 0:00:33.5]}
33... Bg6 {[%clk 0:00:52.3]} 34. Bb3 {[%clk 0:00:31]} 34... Kd7 {[%clk
0:00:52.5]} 35. Ke3 {[%clk 0:00:14.7]} 35... Bf7 {[%clk 0:00:49]} 36. bxa6
{[%clk 0:00:06.8]} 36... bxa6 {[%clk 0:00:49.9]} 37. a5 {[%clk 0:00:07]} 37...
Nc6 {[%clk 0:00:35.7]} 38. Ba4 {[%clk 0:00:06.8]} 38... Bxc4 {[%clk 0:00:36.2]}
39. Bxc6+ {[%clk 0:00:02.8]} 39... Kxc6 {[%clk 0:00:37.1]} 40. Kd4 {[%clk
0:00:01]} 40... Bf1 {[%clk 0:00:36.4]} 41. g3 {[%clk 0:00:01.6]} 41... h3 {[%clk
0:00:36.8]} 42. g4 {[%clk 0:00:01.1]} 42... Be2 {[%clk 0:00:32.3]} 43. Ke3
{[%clk 0:00:01.5]} 43... Bd1 {[%clk 0:00:32.9]} 44. Kf2 {[%clk 0:00:01.2]} 44...
d5 {[%clk 0:00:32.1]} 45. Be5 {[%clk 0:00:01.1]} 45... Kc5 {[%clk 0:00:30.9]}
0-1

[Event "Late-Titled-Tuesday-Blitz-February-20-2024"]
[Site "Chess.com"]
[Date "2024.02.20"]
[Round "8"]
[White "McCarthyStone"]
[Black "MathiasWomacka"]
[Result "0-1"]
[WhiteElo "2365"]
[BlackElo "2508"]
[TimeControl "180+1"]
[EndTime "15:27:57 PST"]
[Termination "MathiasWomacka won on time"]

1. e4 {[%clk 0:03:00.9]} 1... c5 {[%clk 0:03:00.4]} 2. g3 {[%clk 0:03:01.1]}
2... d6 {[%clk 0:03:01]} 3. Bg2 {[%clk 0:03:01.2]} 3... Nc6 {[%clk 0:02:59.4]}
4. Ne2 {[%clk 0:03:01.7]} 4... g6 {[%clk 0:02:57.9]} 5. c3 {[%clk 0:03:01.2]}
5... Bg7 {[%clk 0:02:51.1]} 6. d4 {[%clk 0:03:01.5]} 6... Nf6 {[%clk 0:02:42.6]}
7. O-O {[%clk 0:02:59.6]} 7... O-O {[%clk 0:02:41.2]} 8. h3 {[%clk 0:02:59.6]}
8... Bd7 {[%clk 0:02:14.3]} 9. Be3 {[%clk 0:02:58.8]} 9... cxd4 {[%clk
0:02:10.7]} 10. cxd4 {[%clk 0:02:59.7]} 10... Qa5 {[%clk 0:01:53.6]} 11. Nbc3
{[%clk 0:02:59.3]} 11... Rfc8 {[%clk 0:01:52.1]} 12. Qd2 {[%clk 0:02:51.9]}
12... b5 {[%clk 0:01:49]} 13. b3 {[%clk 0:02:43.7]} 13... Rab8 {[%clk
0:01:44.6]} 14. Rfd1 {[%clk 0:02:33.7]} 14... a6 {[%clk 0:01:36]} 15. f4 {[%clk
0:02:15.4]} 15... b4 {[%clk 0:01:17.9]} 16. Na4 {[%clk 0:02:14.4]} 16... d5
{[%clk 0:01:16.2]} 17. Nc5 {[%clk 0:01:13]} 17... dxe4 {[%clk 0:01:06.2]} 18. d5
{[%clk 0:01:12.6]} 18... Nd8 {[%clk 0:01:03.2]} 19. Nxd7 {[%clk 0:01:04.6]}
19... Nxd7 {[%clk 0:01:01.1]} 20. Rac1 {[%clk 0:01:05.3]} 20... Nb7 {[%clk
0:00:53.3]} 21. Bxe4 {[%clk 0:00:55.7]} 21... Nd6 {[%clk 0:00:52.3]} 22. Bg2
{[%clk 0:00:56.4]} 22... Nb5 {[%clk 0:00:43.5]} 23. Nd4 {[%clk 0:00:54]} 23...
Nxd4 {[%clk 0:00:36.1]} 24. Bxd4 {[%clk 0:00:54.9]} 24... Bxd4+ {[%clk
0:00:31.9]} 25. Qxd4 {[%clk 0:00:55.8]} 25... Qxa2 {[%clk 0:00:30.5]} 26. d6
{[%clk 0:00:44]} 26... exd6 {[%clk 0:00:29]} 27. Qxd6 {[%clk 0:00:43.2]} 27...
Nf8 {[%clk 0:00:29.6]} 28. Bd5 {[%clk 0:00:28.7]} 28... Qb2 {[%clk 0:00:29.2]}
29. Bxf7+ {[%clk 0:00:02.7]} 29... Kxf7 {[%clk 0:00:28.7]} 30. Rc7+ {[%clk
0:00:02.9]} 30... Kg8 {[%clk 0:00:26.3]} 31. Qd5+ {[%clk 0:00:03.5]} 31... Kh8
{[%clk 0:00:24]} 32. Qf7 {[%clk 0:00:01.7]} 32... Rxc7 {[%clk 0:00:23.6]} 33.
Qxc7 {[%clk 0:00:02.6]} 33... Re8 {[%clk 0:00:23]} 34. Qf7 {[%clk 0:00:02.7]}
34... Qe2 {[%clk 0:00:21.7]} 35. Rf1 {[%clk 0:00:02]} 35... Qe3+ {[%clk
0:00:21.6]} 36. Kg2 {[%clk 0:00:01.5]} 36... Qe4+ {[%clk 0:00:20.6]} 37. Kg1
{[%clk 0:00:01.7]} 37... Qe6 {[%clk 0:00:19.3]} 38. Qb7 {[%clk 0:00:01.4]} 38...
Qxb3 {[%clk 0:00:17.5]} 0-1

[Event "Late-Titled-Tuesday-Blitz-February-20-2024"]
[Site "Chess.com"]
[Date "2024.02.20"]
[Round "8"]
[White "thesupera12"]
[Black "Walter_White_Poland"]
[Result "1-0"]
[WhiteElo "2487"]
[BlackElo "2361"]
[TimeControl "180+1"]
[EndTime "15:28:00 PST"]
[Termination "thesupera12 won by resignation"]

1. d4 {[%clk 0:02:57.1]} 1... Nf6 {[%clk 0:02:57.6]} 2. Bg5 {[%clk 0:02:57.1]}
2... c5 {[%clk 0:02:53.5]} 3. Bxf6 {[%clk 0:02:54.3]} 3... exf6 {[%clk
0:02:53.3]} 4. c3 {[%clk 0:02:52]} 4... d5 {[%clk 0:02:53.3]} 5. Nf3 {[%clk
0:02:51.9]} 5... Nc6 {[%clk 0:02:52.9]} 6. e3 {[%clk 0:02:50.7]} 6... Qb6 {[%clk
0:02:51.8]} 7. Qb3 {[%clk 0:02:50.4]} 7... c4 {[%clk 0:02:48.6]} 8. Qc2 {[%clk
0:02:49.5]} 8... Bf5 {[%clk 0:02:30.8]} 9. Qxf5 {[%clk 0:02:39.2]} 9... Qxb2
{[%clk 0:02:30.4]} 10. Qxd5 {[%clk 0:02:32.5]} 10... Qxa1 {[%clk 0:02:30]} 11.
Qe4+ {[%clk 0:02:32.6]} 11... Be7 {[%clk 0:01:24.6]} 12. Bxc4 {[%clk 0:02:29.7]}
12... Qb2 {[%clk 0:01:14.9]} 13. O-O {[%clk 0:02:24]} 13... O-O {[%clk 0:01:10]}
14. d5 {[%clk 0:02:09.5]} 14... Ne5 {[%clk 0:01:09.2]} 15. Nxe5 {[%clk
0:02:07.9]} 15... fxe5 {[%clk 0:01:09.3]} 16. Qxe5 {[%clk 0:02:07.5]} 16... Bf6
{[%clk 0:01:03.3]} 17. Qf5 {[%clk 0:01:53.2]} 17... Bxc3 {[%clk 0:00:50.2]} 18.
Nxc3 {[%clk 0:01:52.8]} 18... Qxc3 {[%clk 0:00:49.5]} 19. Bb3 {[%clk 0:01:52.8]}
19... g6 {[%clk 0:00:47.9]} 20. Qd7 {[%clk 0:01:51.2]} 20... Qc8 {[%clk
0:00:35.3]} 21. Qb5 {[%clk 0:01:42.1]} 21... Qc7 {[%clk 0:00:32.1]} 22. Rd1
{[%clk 0:01:39.3]} 22... Rfd8 {[%clk 0:00:28.9]} 23. h4 {[%clk 0:01:38.4]} 23...
b6 {[%clk 0:00:24]} 24. h5 {[%clk 0:01:36.4]} 24... Rac8 {[%clk 0:00:23.3]} 25.
hxg6 {[%clk 0:01:33.8]} 25... hxg6 {[%clk 0:00:22.9]} 26. Qd3 {[%clk 0:01:32.4]}
26... Qd6 {[%clk 0:00:22.5]} 27. e4 {[%clk 0:01:30.4]} 27... Kg7 {[%clk
0:00:22.3]} 28. Qd4+ {[%clk 0:01:06.6]} 28... f6 {[%clk 0:00:22.1]} 29. Qa4
{[%clk 0:01:03]} 29... Rc7 {[%clk 0:00:20.5]} 30. g3 {[%clk 0:01:02.1]} 30...
Rh8 {[%clk 0:00:18.6]} 31. Qd4 {[%clk 0:00:58.1]} 31... Qe5 {[%clk 0:00:17.6]}
32. Qxe5 {[%clk 0:00:53.6]} 32... fxe5 {[%clk 0:00:17.3]} 33. d6 {[%clk
0:00:54]} 33... Rd7 {[%clk 0:00:17.2]} 34. Be6 {[%clk 0:00:53.5]} 34... Rdd8
{[%clk 0:00:17.2]} 35. d7 {[%clk 0:00:53.4]} 35... Kf6 {[%clk 0:00:17.5]} 36.
Bg4 {[%clk 0:00:53.7]} 36... Rhf8 {[%clk 0:00:16.4]} 37. Rd6+ {[%clk 0:00:53.4]}
37... Ke7 {[%clk 0:00:15.5]} 38. Rxg6 {[%clk 0:00:53.1]} 38... Rf6 {[%clk
0:00:15.1]} 39. Rg5 {[%clk 0:00:51.8]} 39... Kd6 {[%clk 0:00:14.9]} 40. f4
{[%clk 0:00:50]} 40... Kc5 {[%clk 0:00:10.8]} 41. Rxe5+ {[%clk 0:00:49.6]} 41...
Kd4 {[%clk 0:00:11]} 42. Re8 {[%clk 0:00:49.6]} 42... Rf8 {[%clk 0:00:10.4]} 43.
Rxf8 {[%clk 0:00:45.2]} 43... Rxf8 {[%clk 0:00:09.8]} 44. e5 {[%clk 0:00:45.9]}
44... Ke3 {[%clk 0:00:09.1]} 45. e6 {[%clk 0:00:43.4]} 45... Rg8 {[%clk
0:00:09.1]} 46. e7 {[%clk 0:00:42.1]} 46... Rxg4 {[%clk 0:00:09.1]} 47. e8=Q+
{[%clk 0:00:42.2]} 47... Kf3 {[%clk 0:00:07.4]} 48. Qh5 {[%clk 0:00:41.6]} 48...
Kxg3 {[%clk 0:00:06.7]} 49. Qxg4+ {[%clk 0:00:42]} 1-0

[Event "Late-Titled-Tuesday-Blitz-February-20-2024"]
[Site "Chess.com"]
[Date "2024.02.20"]
[Round "8"]
[White "PawnEatingZombie"]
[Black "STAYFlow"]
[Result "0-1"]
[WhiteElo "2207"]
[BlackElo "2358"]
[TimeControl "180+1"]
[EndTime "15:28:00 PST"]
[Termination "STAYFlow won on time"]

1. e4 {[%clk 0:03:00.9]} 1... c5 {[%clk 0:02:59.8]} 2. c3 {[%clk 0:02:59.8]}
2... Nf6 {[%clk 0:02:58.8]} 3. e5 {[%clk 0:02:58.8]} 3... Nd5 {[%clk 0:02:59.2]}
4. Nf3 {[%clk 0:02:59.4]} 4... d6 {[%clk 0:02:57.5]} 5. d4 {[%clk 0:02:58.5]}
5... cxd4 {[%clk 0:02:56.3]} 6. cxd4 {[%clk 0:02:59.4]} 6... Nc6 {[%clk
0:02:56.5]} 7. Bc4 {[%clk 0:02:47.4]} 7... Be6 {[%clk 0:02:43.6]} 8. O-O {[%clk
0:02:39.2]} 8... h6 {[%clk 0:02:37.9]} 9. Re1 {[%clk 0:02:28.1]} 9... g5 {[%clk
0:02:36.4]} 10. Bxd5 {[%clk 0:02:24.7]} 10... Bxd5 {[%clk 0:02:36.1]} 11. Nc3
{[%clk 0:02:25.6]} 11... Bxf3 {[%clk 0:02:30.8]} 12. Qxf3 {[%clk 0:02:23.8]}
12... Bg7 {[%clk 0:02:27.1]} 13. exd6 {[%clk 0:02:19.2]} 13... Qxd6 {[%clk
0:02:24.7]} 14. Nb5 {[%clk 0:01:48.7]} 14... Qd7 {[%clk 0:02:14.2]} 15. d5
{[%clk 0:01:37.5]} 15... Ne5 {[%clk 0:02:14.1]} 16. Qb3 {[%clk 0:01:19.3]} 16...
O-O {[%clk 0:02:11.5]} 17. Be3 {[%clk 0:01:14]} 17... Rfd8 {[%clk 0:02:02.8]}
18. Rad1 {[%clk 0:01:10.5]} 18... a6 {[%clk 0:01:53.7]} 19. Nc3 {[%clk
0:01:00.1]} 19... Rac8 {[%clk 0:01:52]} 20. Bb6 {[%clk 0:00:56.4]} 20... Re8
{[%clk 0:01:51]} 21. Bd4 {[%clk 0:00:50.1]} 21... Qc7 {[%clk 0:01:14.3]} 22. Ne4
{[%clk 0:00:40.3]} 22... Ng4 {[%clk 0:01:01.7]} 23. Ng3 {[%clk 0:00:27.1]} 23...
Nf6 {[%clk 0:00:49.1]} 24. Nf5 {[%clk 0:00:19.8]} 24... Ng4 {[%clk 0:00:49.1]}
25. g3 {[%clk 0:00:18.7]} 25... Be5 {[%clk 0:00:39.9]} 26. Nxh6+ {[%clk
0:00:07.1]} 26... Kh7 {[%clk 0:00:36.6]} 27. Nxg4 {[%clk 0:00:06.3]} 27... Bxd4
{[%clk 0:00:36.5]} 28. Rxd4 {[%clk 0:00:07.1]} 28... Qa5 {[%clk 0:00:35.3]} 29.
Qe3 {[%clk 0:00:06.3]} 29... Kg7 {[%clk 0:00:34.5]} 30. Red1 {[%clk 0:00:06.6]}
30... f6 {[%clk 0:00:33.8]} 31. Ne5 {[%clk 0:00:05.3]} 31... Rc2 {[%clk
0:00:32.2]} 32. Nf3 {[%clk 0:00:04.7]} 32... Rxb2 {[%clk 0:00:31.4]} 33. Nxg5
{[%clk 0:00:04.8]} 33... Qxa2 {[%clk 0:00:28.1]} 34. Ne6+ {[%clk 0:00:04.5]}
34... Kf7 {[%clk 0:00:28.8]} 35. Qf3 {[%clk 0:00:03]} 35... Rh8 {[%clk
0:00:28.2]} 36. h4 {[%clk 0:00:02]} 36... Re2 {[%clk 0:00:22.8]} 37. Rg4 {[%clk
0:00:01.5]} 37... Re5 {[%clk 0:00:20.5]} 38. Rg7+ {[%clk 0:00:01.2]} 38... Ke8
{[%clk 0:00:20.7]} 0-1

[Event "Late-Titled-Tuesday-Blitz-February-20-2024"]
[Site "Chess.com"]
[Date "2024.02.20"]
[Round "8"]
[White "janhelmer03"]
[Black "ural58"]
[Result "0-1"]
[WhiteElo "2268"]
[BlackElo "2486"]
[TimeControl "180+1"]
[EndTime "15:28:02 PST"]
[Termination "ural58 won on time"]

1. d4 {[%clk 0:02:49.7]} 1... d5 {[%clk 0:02:59.7]} 2. c4 {[%clk 0:02:49.8]}
2... e5 {[%clk 0:02:59.7]} 3. dxe5 {[%clk 0:02:47.2]} 3... d4 {[%clk 0:02:59.6]}
4. Nf3 {[%clk 0:02:45.8]} 4... Nc6 {[%clk 0:02:59.6]} 5. Nbd2 {[%clk 0:02:35.4]}
5... a5 {[%clk 0:02:52]} 6. Nb3 {[%clk 0:02:15]} 6... Bg4 {[%clk 0:02:45.3]} 7.
a3 {[%clk 0:01:33.6]} 7... Bxf3 {[%clk 0:02:29.8]} 8. gxf3 {[%clk 0:01:29.7]}
8... a4 {[%clk 0:02:27.6]} 9. Nd2 {[%clk 0:01:28.6]} 9... Nxe5 {[%clk
0:02:25.6]} 10. Bg2 {[%clk 0:01:23.9]} 10... Ng6 {[%clk 0:02:09.7]} 11. Ne4
{[%clk 0:01:02.5]} 11... f5 {[%clk 0:02:06.4]} 12. Ng3 {[%clk 0:01:01.9]} 12...
Nh4 {[%clk 0:02:01.6]} 13. Bh3 {[%clk 0:01:01.2]} 13... g6 {[%clk 0:01:58.6]}
14. O-O {[%clk 0:01:00.4]} 14... Be7 {[%clk 0:01:57.4]} 15. b3 {[%clk 0:00:58]}
15... Nf6 {[%clk 0:01:53.8]} 16. Bb2 {[%clk 0:00:56.1]} 16... c5 {[%clk
0:01:52.8]} 17. Re1 {[%clk 0:00:38]} 17... O-O {[%clk 0:01:52.5]} 18. e3 {[%clk
0:00:38.3]} 18... dxe3 {[%clk 0:01:40.8]} 19. Rxe3 {[%clk 0:00:38.8]} 19... Ra6
{[%clk 0:01:09.1]} 20. Qe2 {[%clk 0:00:35.5]} 20... Rf7 {[%clk 0:00:51.3]} 21.
Rd1 {[%clk 0:00:32.4]} 21... Rd6 {[%clk 0:00:50.9]} 22. Rxd6 {[%clk 0:00:28.7]}
22... Qxd6 {[%clk 0:00:47.3]} 23. Re6 {[%clk 0:00:25.2]} 23... Qd7 {[%clk
0:00:34.2]} 24. bxa4 {[%clk 0:00:06.2]} 24... Kf8 {[%clk 0:00:32.4]} 25. a5
{[%clk 0:00:03.8]} 25... Bd8 {[%clk 0:00:22.8]} 26. a6 {[%clk 0:00:03.4]} 26...
bxa6 {[%clk 0:00:22.1]} 27. Rxa6 {[%clk 0:00:04.3]} 27... Qb7 {[%clk 0:00:17.1]}
28. Re6 {[%clk 0:00:02]} 28... Nxf3+ {[%clk 0:00:16.9]} 29. Kf1 {[%clk
0:00:02.3]} 29... Nd4 {[%clk 0:00:14.7]} 30. Bxd4 {[%clk 0:00:02.1]} 30... cxd4
{[%clk 0:00:15]} 31. Rd6 {[%clk 0:00:02.1]} 31... Be7 {[%clk 0:00:14.4]} 32. Re6
{[%clk 0:00:02]} 32... Qb1+ {[%clk 0:00:12.8]} 33. Qe1 {[%clk 0:00:02]} 33...
Qd3+ {[%clk 0:00:13.1]} 34. Qe2 {[%clk 0:00:02.1]} 34... Qxa3 {[%clk 0:00:13.2]}
35. c5 {[%clk 0:00:01.9]} 35... Qxc5 {[%clk 0:00:13]} 0-1